bitfinex/quotes_SOLUSD_20220208
["timestamp","ask_amount","ask_price","bid_price","bid_amount"]
[1644316340022,1.22722823,113.57,113.48,21.46514262]
[1644316340230,1.22722823,113.57,113.49,23.337]
[1644316340427,14.43802823,113.58,113.51,13.2105]
[1644316340823,14.43802823,113.58,113.51,13.4605]
[1644316341027,13.2108,113.58,113.51,13.4605]
[1644316341624,13.2108,113.58,113.48,6.0]
[1644316341823,13.2108,113.58,113.49,6.0]
[1644316341824,19.22975549,113.57,113.49,6.0]
[1644316342023,0.30023231,113.54,113.47,0.024]
[1644316342225,17.125,113.53,113.44,0.024]
[1644316342425,1.22722823,113.52,113.44,0.024]
[1644316342724,13.94722823,113.51,113.42,22.6285]
[1644316342923,44.0824,113.5,113.42,0.024]
[1644316343126,12.72,113.49,113.41,0.024]
[1644316343330,12.72,113.49,113.4,0.35436708]
[1644316343725,25.9448,113.49,113.4,23.19676708]
[1644316344525,25.9448,113.49,113.4,0.35436708]
[1644316344526,28.05255549,113.49,113.4,0.35436708]
[1644316344734,231.10602691,113.49,113.4,0.35436708]
[1644316344928,159.06,113.48,113.4,0.35436708]
[1644316345127,12.72,113.47,113.4,0.35436708]
[1644316345327,13.2304,113.46,113.4,0.35436708]
[1644316345527,12.72,113.45,113.4,0.35436708]
[1644316346829,13.2316,113.44,113.4,0.35436708]
[1644316347038,12.72,113.43,113.4,0.35436708]
[1644316348533,13.2319,113.42,113.4,0.35436708]
[1644316348729,12.72,113.41,113.4,0.35436708]
[1644316350729,25.953,113.41,113.4,0.35436708]
[1644316353837,12.72,113.41,113.4,0.35436708]
[1644316356840,25.9515,113.41,113.4,0.35436708]
[1644316363870,28.05925549,113.41,113.32,0.024]
[1644316364070,28.05925549,113.41,113.3,23.6357]
[1644316364268,4.41,113.4,113.3,23.6357]
[1644316364468,13.2367,113.37,113.31,23.768]
[1644316364668,12.72,113.36,113.31,23.792]
[1644316364868,12.72,113.36,113.31,23.768]
[1644316367472,12.72,113.36,113.31,24.018]
[1644316370175,25.9555,113.38,113.31,24.018]
[1644316371575,25.9555,113.38,113.31,30.018]
[1644316371776,12.72,113.38,113.31,24.018]
[1644316371973,12.72,113.38,113.31,32.01796306]
[1644316372174,12.72,113.41,113.31,32.01796306]
[1644316372375,12.72,113.41,113.31,32.04196306]
[1644316372875,12.72,113.44,113.31,32.04196306]
[1644316373174,12.72,113.44,113.32,22.6847]
[1644316373375,12.72,113.44,113.33,0.024]
[1644316373575,12.72,113.44,113.33,26.37976306]
[1644316373777,13.2314,113.42,113.34,1.99996306]
[1644316373977,25.9514,113.42,113.34,2.02396306]
[1644316374184,25.9514,113.42,113.34,7.99996306]
[1644316374480,25.9514,113.42,113.34,8.24996306]
[1644316375881,12.72,113.42,113.35,1.99996306]
[1644316376283,12.72,113.42,113.35,2.24996306]
[1644316376480,12.72,113.42,113.35,8.24996306]
[1644316376881,12.72,113.42,113.36,1.99996306]
[1644316377083,12.72,113.42,113.36,7.99996306]
[1644316377383,25.9493,113.44,113.36,8.24996306]
[1644316379283,25.9493,113.44,113.36,0.25]
[1644316379485,25.9493,113.44,113.35,24.8473]
[1644316379689,25.9493,113.44,113.35,24.5973]
[1644316379883,27.17652823,113.44,113.35,24.5973]
[1644316380484,186.23652823,113.44,113.35,24.5973]
[1644316381085,186.23652823,113.44,113.35,0.024]
[1644316381287,5.63622823,113.43,113.33,0.024]
[1644316381489,13.2343,113.4,113.33,0.024]
[1644316381687,12.72,113.39,113.32,22.6607]
[1644316381887,12.72,113.39,113.31,23.1841]
[1644316383086,12.72,113.39,113.31,23.4341]
[1644316383690,13.236,113.37,113.31,23.4341]
[1644316384089,12.72,113.36,113.31,23.4341]
[1644316384287,12.72,113.36,113.31,23.1841]
[1644316384687,12.72,113.36,113.31,23.4341]
[1644316386790,1.22722823,113.41,113.31,25.43406306]
[1644316386992,1.22722823,113.43,113.31,67.70133911]
[1644316387190,1.22722823,113.44,113.32,0.024]
[1644316387392,1.22722823,113.44,113.32,79.9101]
[1644316387592,14.45372823,113.45,113.33,61.88313911]
[1644316387790,1.22722823,113.45,113.34,22.7621]
[1644316387990,12.72,113.46,113.35,0.024]
[1644316387991,1.22722823,113.46,113.35,0.024]
[1644316388191,1.22722823,113.48,113.35,30.51723911]
[1644316388393,1.22722823,113.48,113.36,98.2392]
[1644316388593,1.22722823,113.48,113.37,44.0975]
[1644316388793,1.22722823,113.48,113.38,28.4237]
[1644316388994,1.22722823,113.48,113.38,26.01566306]
[1644316389195,1.22722823,113.48,113.38,85.16566306]
[1644316389394,162.77091201,113.55,113.38,85.16566306]
[1644316389395,1.22722823,113.5,113.39,1.99996306]
[1644316389594,1.22722823,113.5,113.4,52.9193]
[1644316389794,1.22722823,113.5,113.4,53.1933]
[1644316389997,1.22722823,113.51,113.41,1.99996306]
[1644316390196,1.22722823,113.51,113.41,52.30746306]
[1644316390794,1.22722823,113.51,113.42,1.99996306]
[1644316390994,27.16582823,113.52,113.42,1.99996306]
[1644316391196,1.22722823,113.51,113.42,8.24996306]
[1644316391400,1.22722823,113.51,113.42,30.89686306]
[1644316391694,27.16582823,113.52,113.42,44.11416306]
[1644316392322,25.9386,113.52,113.42,44.11416306]
[1644316393320,27.16582823,113.52,113.42,44.11416306]
[1644316393519,25.9386,113.52,113.42,44.11416306]
[1644316394020,25.9386,113.52,113.43,1.99996306]
[1644316394220,25.9386,113.52,113.43,15.46846306]
[1644316394420,12.72,113.52,113.43,21.46846306]
[1644316394620,12.72,113.52,113.44,1.99996306]
[1644316394820,12.72,113.52,113.44,2.24996306]
[1644316395023,12.72,113.52,113.44,8.24996306]
[1644316395722,12.72,113.52,113.44,21.46726306]
[1644316398122,31.56902823,113.55,113.45,1.99996306]
[1644316398322,25.9358,113.55,113.45,38.95636306]
[1644316398521,25.9358,113.55,113.45,44.95636306]
[1644316398923,25.9358,113.55,113.46,1.99996306]
[1644316399122,25.9358,113.55,113.46,7.99996306]
[1644316399322,25.9358,113.55,113.46,6.25]
[1644316399522,25.9358,113.55,113.47,1.99996306]
[1644316399725,25.9358,113.55,113.47,2.24996306]
[1644316399922,25.9358,113.55,113.47,8.24996306]
[1644316400331,25.9358,113.55,113.45,23.491]
[1644316400526,4.405,113.54,113.45,23.491]
[1644316400724,13.2191,113.52,113.4,0.024]
[1644316400924,12.72,113.51,113.4,0.024]
[1644316401124,4.407,113.5,113.4,0.024]
[1644316401324,12.72,113.49,113.39,22.8411]
[1644316401725,13.2247,113.48,113.39,23.0911]
[1644316401923,25.9447,113.48,113.39,25.09106306]
[1644316402124,25.9447,113.48,113.39,31.09106306]
[1644316402725,25.9447,113.48,113.39,30.84106306]
[1644316402928,25.9447,113.48,113.39,0.024]
[1644316402929,39.51045549,113.48,113.39,0.024]
[1644316403323,4.407,113.47,113.39,0.024]
[1644316403524,13.2288,113.45,113.39,0.024]
[1644316403725,12.72,113.44,113.38,24.5936]
[1644316403927,12.72,113.44,113.38,0.024]
[1644316404125,12.72,113.44,113.36,0.024]
[1644316405828,25.9486,113.44,113.36,0.024]
[1644316406028,30.3576,113.44,113.36,0.024]
[1644316406929,42.50935549,113.44,113.33,24.0859]
[1644316407129,201.56935549,113.44,113.33,24.0859]
[1644316407530,201.56935549,113.44,113.33,0.024]
[1644316407731,201.56935549,113.44,113.34,0.024]
[1644316407932,159.06,113.43,113.31,0.024]
[1644316408238,13.2365,113.4,113.31,0.024]
[1644316408534,13.2365,113.4,113.29,0.024]
[1644316408831,13.2365,113.4,113.32,0.024]
[1644316408832,12.72,113.39,113.32,0.024]
[1644316409031,12.72,113.39,113.29,0.024]
[1644316409732,13.236,113.38,113.29,0.024]
[1644316410032,13.236,113.38,113.3,1.99996306]
[1644316410233,25.956,113.38,113.3,1.99996306]
[1644316410435,25.956,113.38,113.3,6.0]
[1644316411235,25.956,113.38,113.3,0.25]
[1644316411436,25.956,113.38,113.3,13.4844]
[1644316411635,12.72,113.38,113.31,2.00505375]
[1644316411834,12.72,113.38,113.31,0.274]
[1644316412938,12.72,113.38,113.31,0.024]
[1644316413136,12.72,113.38,113.3,19.5084]
[1644316413337,25.9551,113.38,113.3,19.5084]
[1644316413540,25.9551,113.38,113.3,6.274]
[1644316413944,25.9551,113.38,113.3,0.274]
[1644316414140,25.9551,113.38,113.3,6.274]
[1644316414338,25.9551,113.38,113.3,0.274]
[1644316415339,25.9551,113.38,113.3,0.024]
[1644316425779,12.72,113.38,113.3,0.024]
[1644316430784,12.72,113.38,113.31,2.00505204]
[1644316431188,12.72,113.38,113.31,8.27905204]
[1644316437088,24.91462823,113.4,113.32,2.00505204]
[1644316437290,23.6874,113.4,113.32,25.61755204]
[1644316437589,23.6874,113.4,113.33,2.00505204]
[1644316437789,13.94722823,113.41,113.33,2.27905204]
[1644316437990,12.72,113.41,113.33,8.27905204]
[1644316438290,12.72,113.41,113.34,2.00505204]
[1644316438491,12.72,113.41,113.34,2.02905204]
[1644316438688,12.72,113.41,113.34,8.27905204]
[1644316438892,12.72,113.41,113.35,2.00505204]
[1644316439089,12.72,113.41,113.35,8.00505204]
[1644316439289,12.72,113.41,113.35,8.25505204]
[1644316439692,12.22,113.41,113.35,8.25505204]
[1644316442995,12.22,113.41,113.35,21.29695204]
[1644316443396,13.2304,113.43,113.36,2.00505204]
[1644316443595,13.2304,113.43,113.36,8.00505204]
[1644316443796,13.2304,113.43,113.36,8.25505204]
[1644316444097,13.2304,113.43,113.36,2.25505204]
[1644316444697,13.2304,113.43,113.36,8.25505204]
[1644316445498,13.2304,113.43,113.36,2.25505204]
[1644316446001,13.2304,113.43,113.36,8.25505204]
[1644316446400,13.2304,113.43,113.36,2.25505204]
[1644316446602,13.2304,113.43,113.36,8.25505204]
[1644316447002,13.2304,113.43,113.36,8.00505204]
[1644316447200,13.2304,113.43,113.36,2.25505204]
[1644316447600,13.2304,113.43,113.36,8.25505204]
[1644316448202,13.2304,113.43,113.36,2.25505204]
[1644316449703,13.2304,113.43,113.36,0.25]
[1644316449905,13.2304,113.43,113.35,23.0054]
[1644316450105,13.2304,113.43,113.35,29.0054]
[1644316450305,13.2304,113.43,113.35,23.0054]
[1644316450505,13.2304,113.43,113.35,22.7554]
[1644316450706,14.45762823,113.43,113.35,22.7554]
[1644316450905,14.45762823,113.43,113.35,28.7554]
[1644316451105,14.45762823,113.43,113.35,23.0054]
[1644316451305,13.2304,113.43,113.35,25.01045204]
[1644316452306,13.2304,113.43,113.35,31.01045204]
[1644316452505,13.2304,113.43,113.35,25.01045204]
[1644316453310,13.2274,113.44,113.35,53.50657254]
[1644316453508,13.2274,113.44,113.35,59.50657254]
[1644316453708,13.2274,113.44,113.35,46.27817254]
[1644316453908,13.2274,113.44,113.35,40.25417254]
[1644316454108,25.9474,113.44,113.35,46.25417254]
[1644316454310,25.9474,113.44,113.35,46.27817254]
[1644316455610,25.9474,113.44,113.35,44.2731205]
[1644316455809,25.9474,113.44,113.35,23.0054]
[1644316456009,27.17462823,113.44,113.35,23.0054]
[1644316456511,25.9474,113.44,113.35,23.0054]
[1644316456914,25.9474,113.44,113.35,36.2353]
[1644316457712,25.9474,113.44,113.35,13.5039]
[1644316457912,25.9474,113.44,113.35,0.024]
[1644316458116,13.2345,113.41,113.33,0.024]
[1644316458313,12.72,113.4,113.33,0.024]
[1644316459318,13.235,113.38,113.33,0.024]
[1644316459517,12.72,113.37,113.3,0.024]
[1644316459715,12.72,113.37,113.28,14.75798731]
[1644316459917,12.72,113.37,113.29,0.024]
[1644316460115,12.72,113.37,113.28,0.024]
[1644316460723,13.2387,113.35,113.28,13.2623]
[1644316460915,25.9587,113.35,113.29,0.024]
[1644316461115,25.9587,113.35,113.28,19.5123]
[1644316462020,25.9587,113.35,113.28,21.51293715]
[1644316463719,25.9587,113.35,113.28,21.26293715]
[1644316464721,25.9587,113.35,113.28,15.26293715]
[1644316464919,25.9587,113.35,113.28,13.2623]
[1644316465118,25.9587,113.35,113.29,2.00572468]
[1644316465419,25.9587,113.35,113.29,0.25]
[1644316465719,25.9587,113.35,113.28,13.5123]
[1644316466618,25.9587,113.35,113.28,0.274]
[1644316466944,25.9587,113.35,113.28,0.024]
[1644316467140,25.9587,113.35,113.27,45.55892468]
[1644316467640,25.9587,113.35,113.27,45.53492468]
[1644316467841,25.9587,113.35,113.27,45.55892468]
[1644316468451,25.9587,113.35,113.27,43.5532]
[1644316469541,25.9587,113.35,113.28,2.00572468]
[1644316469740,25.9587,113.35,113.28,15.51862468]
[1644316470141,25.9587,113.35,113.28,21.51862468]
[1644316470340,25.9587,113.35,113.28,15.51862468]
[1644316471144,25.9587,113.35,113.28,13.5129]
[1644316471342,25.9587,113.35,113.28,15.51862468]
[1644316471744,25.9587,113.35,113.28,13.5129]
[1644316473147,25.9587,113.35,113.28,15.51862468]
[1644316474048,25.9587,113.35,113.28,13.5129]
[1644316475049,25.9587,113.35,113.29,2.00572468]
[1644316475249,13.2387,113.35,113.29,15.49362468]
[1644316475455,13.2372,113.36,113.29,15.49362468]
[1644316475653,37.3027,113.37,113.3,2.00572468]
[1644316475851,37.3027,113.37,113.3,2.25572468]
[1644316476149,24.5827,113.37,113.3,0.25]
[1644316476351,24.5827,113.37,113.3,6.25]
[1644316476751,37.8185,113.37,113.31,13.2354]
[1644316476952,13.2358,113.37,113.31,13.2354]
[1644316477151,13.2358,113.37,113.31,19.4854]
[1644316477959,13.2348,113.38,113.32,2.00572468]
[1644316478165,12.72,113.39,113.32,21.23942468]
[1644316478354,12.72,113.39,113.32,21.48942468]
[1644316479158,24.3329,113.4,113.32,21.48942468]
[1644316479356,24.3329,113.4,113.32,45.50102468]
[1644316479756,13.2337,113.39,113.32,45.50102468]
[1644316480460,24.3329,113.4,113.32,45.50102468]
[1644316481757,37.5653,113.4,113.32,45.50102468]
[1644316482458,37.5653,113.4,113.32,58.65762468]
[1644316483060,37.5653,113.4,113.32,45.50102468]
[1644316483257,37.5653,113.4,113.32,43.4953]
[1644316489762,37.5653,113.4,113.32,45.50102468]
[1644316490363,25.9506,113.41,113.32,45.50102468]
[1644316490564,13.2306,113.41,113.33,0.024]
[1644316490771,44.1029,113.44,113.35,13.2295]
[1644316490772,1.22722823,113.44,113.35,13.2295]
[1644316490974,13.94722823,113.45,113.35,13.2295]
[1644316491167,12.72,113.45,113.35,19.4795]
[1644316491368,13.94722823,113.45,113.35,19.4795]
[1644316491574,13.2284,113.43,113.35,19.4795]
[1644316493070,13.2284,113.43,113.35,42.8976]
[1644316494473,13.2284,113.43,113.35,37.1476]
[1644316495073,13.2284,113.43,113.35,43.1476]
[1644316497375,13.2284,113.43,113.35,45.15332468]
[1644316500778,49.8145,113.44,113.35,45.15332468]
[1644316502783,25.9471,113.44,113.35,45.15332468]
[1644316505086,25.9471,113.44,113.35,42.8976]
[1644316505487,25.9471,113.44,113.35,36.8976]
[1644316506492,25.9471,113.44,113.35,37.1476]
[1644316506888,25.9471,113.44,113.35,43.1476]
[1644316507087,27.17432823,113.44,113.35,36.8976]
[1644316507287,31.58332823,113.44,113.35,23.6681]
[1644316507687,1.22722823,113.43,113.35,23.6681]
[1644316507888,13.2323,113.41,113.33,0.024]
[1644316508089,12.72,113.4,113.33,0.024]
[1644316508504,12.72,113.4,113.33,13.2568]
[1644316509206,12.72,113.4,113.33,15.26252468]
[1644316509405,12.72,113.4,113.33,13.2568]
[1644316509806,13.2329,113.39,113.33,13.5068]
[1644316510304,13.2329,113.39,113.33,0.024]
[1644316510504,25.9529,113.39,113.31,25.77722468]
[1644316511508,25.9529,113.39,113.31,26.02722468]
[1644316512706,25.9529,113.39,113.31,37.2568]
[1644316515810,25.9529,113.39,113.31,39.26252468]
[1644316516308,25.9529,113.39,113.31,37.2568]
[1644316516511,25.9529,113.39,113.31,39.26252468]
[1644316516908,25.9529,113.39,113.31,37.2568]
[1644316517310,25.9529,113.39,113.31,43.2568]
[1644316517509,25.9529,113.39,113.31,37.2568]
[1644316519711,25.9529,113.39,113.31,43.2568]
[1644316519918,25.9529,113.39,113.31,37.2568]
[1644316520614,25.9529,113.39,113.31,23.7715]
[1644316521414,25.9529,113.39,113.31,24.0215]
[1644316521815,25.9529,113.39,113.31,37.257]
[1644316522514,25.9529,113.39,113.31,39.26272468]
[1644316522914,25.9529,113.39,113.31,37.257]
[1644316525617,25.9529,113.39,113.31,43.257]
[1644316526016,25.9529,113.39,113.31,37.257]
[1644316526416,25.9529,113.39,113.31,39.26272468]
[1644316527819,25.9529,113.39,113.31,45.26272468]
[1644316528019,12.72,113.39,113.31,45.26272468]
[1644316528819,12.72,113.41,113.31,60.53044518]
[1644316529022,13.2303,113.41,113.35,13.23]
[1644316529225,13.2303,113.41,113.35,13.48]
[1644316529419,13.2303,113.41,113.36,2.00572468]
[1644316529819,13.2303,113.41,113.36,2.25572468]
[1644316530821,13.2303,113.41,113.36,15.48562468]
[1644316532123,13.2303,113.41,113.36,13.4799]
[1644316536832,13.2303,113.41,113.36,13.2299]
[1644316538535,13.2303,113.41,113.36,15.23562468]
[1644316540937,13.2303,113.41,113.36,13.2299]
[1644316543245,13.2303,113.41,113.36,19.2299]
[1644316543438,13.2303,113.41,113.36,13.2299]
[1644316545338,13.2303,113.41,113.35,13.231]
[1644316545540,13.2303,113.41,113.34,6.25]
[1644316545739,25.9503,113.41,113.32,32.63262468]
[1644316545939,25.9503,113.41,113.32,26.88262468]
[1644316546138,25.9503,113.41,113.32,32.88262468]
[1644316546841,25.9503,113.41,113.34,13.2323]
[1644316547643,25.9503,113.41,113.34,13.4823]
[1644316549543,25.9503,113.41,113.34,13.2323]
[1644316549743,25.9503,113.41,113.34,13.4823]
[1644316552149,25.9503,113.41,113.34,19.4823]
[1644316552349,25.9503,113.41,113.34,13.2323]
[1644316553150,25.9503,113.41,113.34,19.2323]
[1644316553548,25.9503,113.41,113.34,13.2323]
[1644316553750,25.9503,113.41,113.34,13.4823]
[1644316554150,25.9503,113.41,113.34,19.4823]
[1644316554349,25.9503,113.41,113.34,13.4823]
[1644316554550,27.17752823,113.41,113.34,13.4823]
[1644316555550,27.17752823,113.41,113.34,19.4823]
[1644316556052,27.17752823,113.41,113.34,13.4823]
[1644316558168,27.17752823,113.41,113.34,19.4823]
[1644316559069,25.9503,113.41,113.34,19.4823]
[1644316559269,27.17752823,113.41,113.34,19.4823]
[1644316560671,25.9503,113.41,113.34,19.4823]
[1644316562477,27.17752823,113.41,113.34,13.4823]
[1644316562674,27.17752823,113.41,113.34,13.2323]
[1644316569685,27.17752823,113.41,113.34,19.2323]
[1644316569889,27.17752823,113.41,113.34,13.2323]
[1644316570087,27.17752823,113.41,113.33,13.2581]
[1644316570290,27.17752823,113.41,113.33,13.5081]
[1644316570686,1.22722823,113.4,113.33,13.5081]
[1644316570886,13.235,113.38,113.33,13.5081]
[1644316571090,13.235,113.38,113.33,13.4841]
[1644316571788,13.235,113.38,113.32,43.8379]
[1644316571990,13.235,113.38,113.32,37.8379]
[1644316572188,25.955,113.38,113.32,37.8379]
[1644316573192,25.955,113.38,113.32,38.0879]
[1644316585206,25.955,113.38,113.32,24.6029]
[1644316585804,25.955,113.38,113.32,24.8529]
[1644316586205,25.955,113.38,113.32,24.6029]
[1644316586704,25.955,113.38,113.32,24.8529]
[1644316587304,25.955,113.38,113.32,30.6029]
[1644316587504,25.955,113.38,113.32,24.6029]
[1644316589507,27.18222823,113.38,113.32,24.6029]
[1644316590311,25.955,113.38,113.32,24.6029]
[1644316591326,17.6418806,113.35,113.32,24.6029]
[1644316591532,17.6418806,113.35,113.33,6.06439993]
[1644316591728,17.6418806,113.35,113.33,3.03219996]
[1644316592229,17.6418806,113.35,113.32,24.6029]
[1644316593035,17.6418806,113.35,113.3,0.024]
[1644316593233,30.3618806,113.35,113.28,22.8756]
[1644316593630,30.3618806,113.35,113.28,23.1256]
[1644316594030,30.3618806,113.35,113.28,22.8756]
[1644316594731,30.3618806,113.35,113.28,36.1154]
[1644316595232,53.4653806,113.35,113.28,36.1154]
[1644316595633,53.4653806,113.35,113.28,36.3654]
[1644316596130,53.4653806,113.35,113.28,0.274]
[1644316596331,53.4653806,113.35,113.28,0.024]
[1644316596532,53.4653806,113.35,113.27,0.024]
[1644316596733,53.4653806,113.35,113.28,0.024]
[1644316596734,4.412,113.34,113.28,0.024]
[1644316596932,25.9664,113.33,113.23,78.30844181]
[1644316597132,49.4533,113.33,113.23,48.0461]
[1644316597333,6.52075549,113.32,113.21,1.25158731]
[1644316597533,6.52075549,113.32,113.2,19.6797205]
[1644316597534,171.78,113.31,113.2,4.412]
[1644316597732,4.414,113.3,113.19,1.25158731]
[1644316597935,12.72,113.29,113.19,1.25158731]
[1644316598332,12.72,113.29,113.17,69.44629543]
[1644316598532,25.97,113.29,113.18,13.2494]
[1644316598734,25.97,113.29,113.18,35.67694158]
[1644316599134,25.97,113.29,113.19,22.42754158]
[1644316599333,4.415,113.28,113.19,22.42754158]
[1644316599534,13.2504,113.26,113.19,28.42754158]
[1644316599734,25.9704,113.26,113.19,67.26553551]
[1644316599933,25.9704,113.26,113.19,44.83799393]
[1644316600134,25.9704,113.26,113.19,45.08799393]
[1644316602034,12.72,113.26,113.19,45.08799393]
[1644316603242,48.5739,113.3,113.19,60.32682554]
[1644316603243,12.72,113.28,113.19,60.32682554]
[1644316603641,12.72,113.28,113.2,22.36134947]
[1644316603842,12.72,113.28,113.2,27.02634947]
[1644316604041,12.72,113.28,113.22,13.245]
[1644316604241,12.72,113.28,113.22,13.495]
[1644316604443,25.9666,113.28,113.22,8.25079393]
[1644316605044,25.9666,113.28,113.22,21.49639393]
[1644316605243,12.72,113.28,113.22,21.49639393]
[1644316608650,12.72,113.28,113.22,8.25079393]
[1644316608859,25.9667,113.28,113.22,8.25079393]
[1644316611451,25.9667,113.28,113.22,6.25]
[1644316611649,25.9667,113.28,113.22,0.25]
[1644316611850,25.9667,113.28,113.21,29.987]
[1644316612652,25.9667,113.28,113.21,30.011]
[1644316612951,25.9667,113.28,113.21,43.258]
[1644316613855,25.9667,113.28,113.21,43.008]
[1644316615254,25.9667,113.28,113.21,43.258]
[1644316616154,25.92756062,113.28,113.21,37.258]
[1644316617555,25.92756062,113.28,113.21,43.258]
[1644316619460,25.92756062,113.28,113.21,30.011]
[1644316619758,36.23156062,113.28,113.21,30.011]
[1644316619958,36.23156062,113.28,113.21,6.024]
[1644316620163,36.23156062,113.28,113.21,0.024]
[1644316620360,4.415,113.27,113.18,0.024]
[1644316620560,25.9749,113.26,113.18,0.024]
[1644316620759,25.9749,113.26,113.17,0.024]
[1644316621359,25.9749,113.26,113.17,2.00079393]
[1644316621561,25.9749,113.26,113.18,0.024]
[1644316621959,25.9749,113.26,113.19,2.00079393]
[1644316622161,25.9749,113.26,113.19,8.00079393]
[1644316622360,13.2549,113.26,113.19,8.25079393]
[1644316622560,13.2549,113.26,113.2,2.00079393]
[1644316622762,13.2549,113.26,113.2,2.25079393]
[1644316623360,13.2549,113.26,113.2,26.25199393]
[1644316623964,25.968,113.27,113.2,39.49999393]
[1644316624166,25.968,113.27,113.2,39.52399393]
[1644316625165,25.968,113.27,113.2,45.52399393]
[1644316625365,12.72,113.27,113.2,45.52399393]
[1644316626669,25.9678,113.27,113.2,45.27399393]
[1644316626966,25.9678,113.27,113.2,37.2732]
[1644316628569,25.9678,113.27,113.2,37.5232]
[1644316629568,25.9678,113.27,113.2,43.2732]
[1644316629770,25.9678,113.27,113.2,37.2732]
[1644316630570,25.9678,113.27,113.2,39.52914176]
[1644316630970,25.9678,113.27,113.2,43.5232]
[1644316631171,12.72,113.27,113.2,45.53413337]
[1644316631571,12.72,113.27,113.2,43.5232]
[1644316631772,12.72,113.27,113.2,43.2732]
[1644316632875,25.9678,113.27,113.2,43.5232]
[1644316633276,0.00695157,113.34,113.22,0.44]
[1644316633475,1.237878,113.34,113.25,13.2374]
[1644316633673,4.4039806,113.35,113.33,3.52706611]
[1644316633874,4.41,113.39,113.34,3.03219996]
[1644316634075,19.20606,113.41,113.33,0.25]
[1644316634274,19.20606,113.41,113.33,2.01093337]
[1644316634478,19.20606,113.41,113.3,60.1224]
[1644316634674,0.04146128,113.4,113.3,66.1224]
[1644316634875,0.04146128,113.4,113.31,2.01592547]
[1644316635074,0.04146128,113.4,113.31,17.04492547]
[1644316635276,0.04146128,113.4,113.31,17.29492547]
[1644316635477,0.04146128,113.4,113.32,2.01592547]
[1644316635676,0.04146128,113.4,113.31,6.25]
[1644316635876,0.04146128,113.4,113.32,15.24912547]
[1644316636075,0.04146128,113.4,113.32,21.24912547]
[1644316636275,0.04146128,113.4,113.32,21.49912547]
[1644316636478,0.04146128,113.4,113.32,19.4832]
[1644316637681,0.04146128,113.4,113.32,6.25]
[1644316637878,0.04146128,113.4,113.32,0.25]
[1644316638079,0.04146128,113.4,113.32,6.25]
[1644316638679,0.04146128,113.4,113.32,19.4835]
[1644316638981,0.04146128,113.4,113.32,6.25]
[1644316639380,0.04146128,113.4,113.32,0.25]
[1644316639582,0.04146128,113.4,113.3,55.15322547]
[1644316639781,0.04146128,113.4,113.32,2.01592547]
[1644316640182,0.04146128,113.4,113.32,6.25]
[1644316640581,12.72,113.4,113.3,46.8873]
[1644316640783,12.76146128,113.4,113.3,53.1373]
[1644316641682,25.99726128,113.4,113.3,66.3722]
[1644316642883,25.99726128,113.4,113.31,2.01599475]
[1644316643083,25.99726128,113.4,113.31,8.01599475]
[1644316643294,25.99726128,113.4,113.28,15.27739475]
[1644316643483,13.2388,113.38,113.3,6.0]
[1644316643684,13.2388,113.38,113.3,0.25]
[1644316643884,12.72,113.37,113.3,0.25]
[1644316644384,12.72,113.37,113.28,13.2614]
[1644316644584,25.9586,113.37,113.28,6.024]
[1644316644985,25.9586,113.37,113.28,0.024]
[1644316645186,25.9586,113.37,113.28,6.024]
[1644316645387,4.412,113.36,113.28,6.0]
[1644316645591,12.72,113.35,113.27,0.024]
[1644316646291,13.2425,113.34,113.27,0.024]
[1644316646689,13.2425,113.34,113.25,0.024]
[1644316648615,21.8435,113.34,113.25,0.024]